[Event "90th GER-ch 2019"]
[Site "Magdeburg"]
[Date "2019.05.30"]
[Round "7.11"]
[White "Gungl, Theo"]
[Black "Moeller, Dustin"]
[Result "1/2-1/2"]
[ECO "B13"]
[WhiteElo "2331"]
[BlackElo "2156"]
[Annotator "ChessBase"]
[PlyCount "71"]
[EventDate "2019.05.26"]
[EventType "tourn"]
[EventCountry "GER"]
[SourceTitle "playchess.com"]
[Source "ChessBase"]
[SourceQuality "1"]
[TimeControl "40/5400+30:1800+30"]

1. e4 {[%emt 0:00:00]} c6 {[%emt 0:00:00]} 2. d4 {[%emt 0:00:00]} d5 {[%emt 0:00:00]} 3. exd5 {[%emt 0:00:00]} cxd5 {[%emt 0:00:00]} 4. Bd3 {[%emt 0:00:00]} Nc6 {[%emt 0:00:00]} 5. c3 {[%emt 0:00:00]} Nf6 {[%emt 0:00:00]} 6. Bf4 {[%emt 0:01:13]} Bg4 {[%emt 0:00:02]} 7. Qb3 {[%emt 0:04:10]} e5 {[%emt 0:00:08]} 8. dxe5 {[%emt 0:12:53]} Nh5 {[%emt 0:00:33]} 9. Be3 {[%emt 0:02:05]} Nxe5 {[%emt 0:00:31]} 10. Bb5+ {[%emt 0:01:14]} Nc6 {[%emt 0:00:07]} 11. Nd2 {[%emt 0:04:23]} Be7 {[%emt 0:16:14]} 12. Ngf3 {[%emt 0:02:51]} O-O {[%emt 0:00:27]} 13. O-O {[%emt 0:05:22]} a6 {[%emt 0:04:46]} 14. Be2 {[%emt 0:08:56]} b5 {[%emt 0:04:47]} 15. h3 {[%emt 0:11:44]} Be6 {[%emt 0:03:31]} 16. Qd1 {[%emt 0:01:58]} Nf6 {[%emt 0:03:48]} 17. Nd4 {[%emt 0:00:33]} Nxd4 {[%emt 0:02:02]} 18. Bxd4 {[%emt 0:00:01]} Ne4 {[%emt 0:02:23]} 19. Re1 {[%emt 0:01:52]} b4 {[%emt 0:08:32]} 20. Bd3 {[%emt 0:17:38]} bxc3 {[%emt 0:07:38]} 21. Nxe4 {[%emt 0:08:33]} dxe4 {[%emt 0:02:25]} 22. Bxe4 {[%emt 0:00:23]} cxb2 {[%emt 0:00:06]} 23. Bxb2 {[%emt 0:00:23]} Qxd1 {[%emt 0:00:14]} 24. Rexd1 {[%emt 0:00:07]} Rab8 {[%emt 0:01:23]} 25. Be5 {[%emt 0:03:48]} Rbd8 {[%emt 0:06:12]} 26. Bb7 {[%emt 0:03:56]} Rxd1+ {[%emt 0:00:19]} 27. Rxd1 {[%emt 0:00:03]} Bxa2 {[%emt 0:00:08]} 28. Bxa6 {[%emt 0:00:04]} Rd8 {[%emt 0:00:29]} 29. Rxd8+ {[%emt 0:02:21]} Bxd8 {[%emt 0:00:02]} 30. Bd4 {[%emt 0:00:09]} Be7 {[%emt 0:00:08]} 31. Be3 {[%emt 0:00:19]} Bd6 {[%emt 0:00:14]} 32. Bd3 {[%emt 0:00:07]} Be6 {[%emt 0:00:08]} 33. Bd4 {[%emt 0:00:07]} Bd5 {[%emt 0:00:06]} 34. Be3 {[%emt 0:00:07]} Be6 {[%emt 0:00:04]} 35. Bd4 {[%emt 0:00:05]} Bd5 {[%emt 0:00:04]} 36. Be3 {[%emt 0:00:06]} 1/2-1/2

[Event "90th GER-ch 2019"]
[Site "Magdeburg"]
[Date "2019.05.30"]
[Round "7.12"]
[White "Trifan, Andrei Ioan"]
[Black "Polster, Christian"]
[Result "1-0"]
[ECO "B94"]
[WhiteElo "2268"]
[BlackElo "2236"]
[Annotator "ChessBase"]
[PlyCount "53"]
[EventDate "2019.05.26"]
[EventType "tourn"]
[EventCountry "GER"]
[SourceTitle "playchess.com"]
[Source "ChessBase"]
[SourceQuality "1"]
[TimeControl "40/5400+30:1800+30"]

1. e4 {[%emt 0:00:00]} c5 {[%emt 0:00:00]} 2. Nf3 {[%emt 0:01:02]} d6 {[%emt 0:00:00]} 3. d4 {[%emt 0:00:34]} cxd4 {[%emt 0:00:00]} 4. Nxd4 {[%emt 0:00:03]} Nf6 {[%emt 0:00:00]} 5. Nc3 {[%emt 0:00:21]} a6 {[%emt 0:00:04]} 6. Bg5 {[%emt 0:00:48]} Nbd7 {[%emt 0:00:06]} 7. Qe2 {[%emt 0:00:31]} h6 {[%emt 0:00:23]} 8. Bh4 {[%emt 0:00:50]} g6 {[%emt 0:00:34]} 9. f4 {[%emt 0:01:14]} e5 {[%emt 0:00:21]} 10. fxe5 {[%emt 0:00:32]} dxe5 {[%emt 0:00:47]} 11. O-O-O {[%emt 0:00:15]} Qc7 {[%emt 0:00:44]} 12. Nb3 {[%emt 0:02:29]} b5 {[%emt 0:00:28]} 13. Nd5 {[%emt 0:03:12]} Nxd5 {[%emt 0:00:37]} 14. exd5 {[%emt 0:01:35]} Bd6 {[%emt 0:00:29]} 15. g4 {[%emt 0:07:59]} Kf8 {[%emt 0:03:52]} 16. Nd2 {[%emt 0:03:46]} Kg7 {[%emt 0:04:29]} 17. Ne4 {[%emt 0:04:04]} Rf8 {[%emt 0:10:56]} 18. Bg2 {[%emt 0:02:55]} f5 {[%emt 0:09:56]} 19. gxf5 {[%emt 0:05:33]} gxf5 {[%emt 0:00:35]} 20. Rhg1 {[%emt 0:02:17]} fxe4 {[%emt 0:39:36]} 21. Bxe4+ {[%emt 0:01:07]} Kh8 {[%emt 0:02:00]} 22. Qh5 {[%emt 0:00:09]} Nf6 {[%emt 0:00:41]} 23. Qxh6+ {[%emt 0:00:19]} Nh7 {[%emt 0:00:10]} 24. Bxh7 {[%emt 0:00:16]} Qxh7 {[%emt 0:00:05]} 25. Bf6+ {[%emt 0:00:08]} Rxf6 {[%emt 0:00:06]} 26. Qxf6+ {[%emt 0:00:05]} Qg7 {[%emt 0:00:11]} 27. Qxg7# {[%emt 0:00:06]} 1-0

[Event "90th GER-ch 2019"]
[Site "Magdeburg"]
[Date "2019.05.30"]
[Round "7.13"]
[White "Kardoeus, David"]
[Black "Wachinger, Nikolas"]
[Result "1/2-1/2"]
[ECO "B94"]
[WhiteElo "2202"]
[BlackElo "2311"]
[Annotator "ChessBase"]
[PlyCount "118"]
[EventDate "2019.05.26"]
[EventType "tourn"]
[EventCountry "GER"]
[SourceTitle "playchess.com"]
[Source "ChessBase"]
[SourceQuality "1"]
[TimeControl "40/5400+30:1800+30"]

1. e4 {[%emt 0:00:00]} c5 {[%emt 0:00:00]} 2. Nf3 {[%emt 0:00:22]} d6 {[%emt 0:00:33]} 3. d4 {[%emt 0:00:56]} cxd4 {[%emt 0:00:31]} 4. Nxd4 {[%emt 0:00:31]} Nf6 {[%emt 0:00:09]} 5. Nc3 {[%emt 0:00:52]} a6 {[%emt 0:00:10]} 6. Bg5 {[%emt 0:01:10]} Nbd7 {[%emt 0:00:22]} 7. Qe2 {[%emt 0:00:20]} h6 {[%emt 0:00:08]} 8. Bh4 {[%emt 0:00:20]} g6 {[%emt 0:00:03]} 9. f4 {[%emt 0:00:27]} e5 {[%emt 0:00:02]} 10. fxe5 {[%emt 0:00:14]} dxe5 {[%emt 0:00:02]} 11. O-O-O {[%emt 0:00:31]} Qc7 {[%emt 0:00:08]} 12. Nb3 {[%emt 0:00:37]} b5 {[%emt 0:00:03]} 13. Rxd7 {[%emt 0:09:14]} Nxd7 {[%emt 0:00:03]} 14. Nd5 {[%emt 0:00:09]} Qb8 {[%emt 0:00:05]} 15. Na5 {[%emt 0:00:11]} Bb7 {[%emt 0:00:05]} 16. Nf6+ {[%emt 0:02:55]} Nxf6 {[%emt 0:00:03]} 17. Bxf6 {[%emt 0:00:09]} Qc7 {[%emt 0:00:05]} 18. Nxb7 {[%emt 0:00:24]} Rh7 {[%emt 0:00:04]} 19. a4 {[%emt 0:03:09]} bxa4 {[%emt 0:00:19]} 20. Qc4 {[%emt 0:02:50]} Qxb7 {[%emt 0:00:08]} 21. Qxa4+ {[%emt 0:00:55]} Qd7 {[%emt 0:00:08]} 22. Qxd7+ {[%emt 0:02:32]} Kxd7 {[%emt 0:00:02]} 23. Bc4 {[%emt 0:02:15]} Bd6 {[%emt 0:01:33]} 24. Rd1 {[%emt 0:03:17]} Kc7 {[%emt 0:03:04]} 25. h4 {[%emt 0:10:26]} Re8 {[%emt 0:11:15]} 26. c3 {[%emt 0:09:44]} a5 {[%emt 0:07:24]} 27. Kc2 {[%emt 0:01:42]} Kc6 {[%emt 0:03:22]} 28. Ra1 {[%emt 0:14:43]} Bc7 {[%emt 0:01:11]} 29. Rd1 {[%emt 0:08:41]} h5 {[%emt 0:03:36]} 30. Bb3 {[%emt 0:02:49]} Re6 {[%emt 0:03:44]} 31. Bxe6 {[%emt 0:06:47]} fxe6 {[%emt 0:00:03]} 32. Kb3 {[%emt 0:02:42]} Rf7 {[%emt 0:01:55]} 33. Bg5 {[%emt 0:00:50]} Rf2 {[%emt 0:00:31]} 34. Rd2 {[%emt 0:01:19]} Rf1 {[%emt 0:00:04]} 35. Re2 {[%emt 0:01:03]} Kb5 {[%emt 0:00:43]} 36. c4+ {[%emt 0:02:13]} Kc5 {[%emt 0:01:28]} 37. Kc3 {[%emt 0:00:38]} Kc6 {[%emt 0:00:48]} 38. b4 {[%emt 0:09:27]} axb4+ {[%emt 0:00:22]} 39. Kxb4 {[%emt 0:00:10]} Rb1+ {[%emt 0:01:11]} 40. Kc3 {[%emt 0:01:40]} Ba5+ {[%emt 0:00:31]} 41. Kc2 {[%emt 0:12:00]} Rf1 {[%emt 0:04:04]} 42. Be3 {[%emt 0:02:45]} Be1 {[%emt 0:01:29]} 43. Kb3 {[%emt 0:01:31]} Bxh4 {[%emt 0:01:09]} 44. Ra2 {[%emt 0:00:06]} Re1 {[%emt 0:00:26]} 45. Ra6+ {[%emt 0:00:59]} Kb7 {[%emt 0:00:21]} 46. Ra7+ {[%emt 0:00:20]} Kb8 {[%emt 0:00:02]} 47. Bc5 {[%emt 0:00:27]} Rxe4 {[%emt 0:00:59]} 48. Kb4 {[%emt 0:01:15]} Re2 {[%emt 0:07:18]} 49. Kb5 {[%emt 0:00:56]} Bd8 {[%emt 0:02:52]} 50. Kc6 {[%emt 0:03:26]} Rb2 {[%emt 0:02:11]} 51. Rg7 {[%emt 0:02:00]} Kc8 {[%emt 0:02:52]} 52. Rg8 {[%emt 0:01:45]} Rxg2 {[%emt 0:01:20]} 53. Bb6 {[%emt 0:04:02]} Rd2 {[%emt 0:00:04]} 54. Bxd8 {[%emt 0:03:33]} Rxd8 {[%emt 0:00:03]} 55. Rxg6 {[%emt 0:00:07]} Rh8 {[%emt 0:02:28]} 56. Rg3 {[%emt 0:00:10]} h4 {[%emt 0:01:02]} 57. Ra3 {[%emt 0:00:05]} Kb8 {[%emt 0:00:36]} 58. Rb3+ {[%emt 0:00:05]} Kc8 {[%emt 0:00:24]} 59. Ra3 {[%emt 0:00:06]} Kb8 {[%emt 0:00:05]} 1/2-1/2

[Event "90th GER-ch 2019"]
[Site "Magdeburg"]
[Date "2019.05.30"]
[Round "7.14"]
[White "Bastian, Herbert"]
[Black "Adiyaman, Rene"]
[Result "1-0"]
[ECO "C54"]
[WhiteElo "2297"]
[BlackElo "2175"]
[Annotator "ChessBase"]
[PlyCount "85"]
[EventDate "2019.05.26"]
[EventType "tourn"]
[EventCountry "GER"]
[SourceTitle "playchess.com"]
[Source "ChessBase"]
[SourceQuality "1"]
[TimeControl "40/5400+30:1800+30"]

1. e4 e5 2. Nf3 Nc6 3. Bc4 Bc5 4. c3 Nf6 5. d3 O-O 6. O-O d5 7. exd5 Nxd5 8. Re1 Re8 9. d4 Nb6 10. Bxf7+ Kxf7 11. Ng5+ Kg8 12. Qc2 e4 13. dxc5 Nc4 14. Na3 Qd5 15. Nb5 Re7 16. b3 N4e5 17. c4 Qd3 18. Qxd3 exd3 19. f4 a6 20. Nc3 Ng6 21. Bd2 h6 22. Nge4 Bf5 23. Ng3 Nd4 24. Rxe7 Nxe7 25. Re1 Kf7 26. Nxf5 Nexf5 27. Kf2 Ne6 28. g4 Nfd4 29. Re5 c6 30. Ne4 Rb8 31. h4 Ne2 32. f5 N6f4 33. g5 hxg5 34. hxg5 Nh5 35. Nd6+ Kf8 36. Ke3 Ng1 37. Re4 Nh3 38. Rh4 N3f4 39. Kf3 g6 40. Bxf4 Nxf4 41. Kxf4 d2 42. Rh1 d1=Q 43. Rxd1 1-0

[Event "90th GER-ch 2019"]
[Site "Magdeburg"]
[Date "2019.05.30"]
[Round "7.15"]
[White "Nosek, Reinhard"]
[Black "Dauth, Benjamin"]
[Result "0-1"]
[ECO "D03"]
[WhiteElo "1913"]
[BlackElo "2295"]
[Annotator "ChessBase"]
[PlyCount "50"]
[EventDate "2019.05.26"]
[EventType "tourn"]
[EventCountry "GER"]
[SourceTitle "playchess.com"]
[Source "ChessBase"]
[SourceQuality "1"]
[TimeControl "40/5400+30:1800+30"]

1. d4 {[%emt 0:00:00]} d5 {[%emt 0:00:00]} 2. Nf3 {[%emt 0:00:00]} Nf6 {[%emt 0:00:07]} 3. Bg5 {[%emt 0:00:13]} e6 {[%emt 0:00:05]} 4. e3 {[%emt 0:00:19]} c6 {[%emt 0:01:08]} 5. Bd3 {[%emt 0:00:16]} Be7 {[%emt 0:00:05]} 6. Nbd2 {[%emt 0:00:15]} O-O {[%emt 0:01:47]} 7. h3 {[%emt 0:00:14]} Ne8 {[%emt 0:00:15]} 8. h4 {[%emt 0:01:46]} f6 {[%emt 0:00:43]} 9. Bf4 {[%emt 0:00:07]} Bd6 {[%emt 0:00:15]} 10. Bh2 {[%emt 0:02:40]} Nd7 {[%emt 0:00:54]} 11. Qe2 {[%emt 0:02:07]} Bxh2 {[%emt 0:00:45]} 12. Nxh2 {[%emt 0:01:21]} e5 {[%emt 0:00:47]} 13. c3 {[%emt 0:02:50]} e4 {[%emt 0:00:50]} 14. Bc2 {[%emt 0:00:09]} f5 {[%emt 0:00:12]} 15. Nhf1 {[%emt 0:01:30]} a5 {[%emt 0:00:18]} 16. g4 {[%emt 0:03:47]} fxg4 {[%emt 0:12:46]} 17. Qxg4 {[%emt 0:00:30]} Ne5 {[%emt 0:00:58]} 18. Qe2 {[%emt 0:00:16]} Bg4 {[%emt 0:00:32]} 19. f3 {[%emt 0:00:39]} Nxf3+ {[%emt 0:01:42]} 20. Nxf3 {[%emt 0:00:17]} Bxf3 {[%emt 0:00:14]} 21. Qh2 {[%emt 0:00:11]} Bxh1 {[%emt 0:00:49]} 22. Qxh1 {[%emt 0:00:06]} Nd6 {[%emt 0:00:21]} 23. h5 {[%emt 0:00:48]} Qg5 {[%emt 0:00:55]} 24. O-O-O {[%emt 0:01:03]} Nc4 {[%emt 0:01:56]} 25. h6 {[%emt 0:04:37]} Rxf1 {[%emt 0:02:08]} 0-1

[Event "90th GER-ch 2019"]
[Site "Magdeburg"]
[Date "2019.05.30"]
[Round "7.16"]
[White "Guenther, Andreas"]
[Black "Heimrath, Reiner"]
[Result "0-1"]
[ECO "A48"]
[WhiteElo "2121"]
[BlackElo "2239"]
[Annotator "ChessBase"]
[PlyCount "160"]
[EventDate "2019.05.26"]
[EventType "tourn"]
[EventCountry "GER"]
[SourceTitle "playchess.com"]
[Source "ChessBase"]
[SourceQuality "1"]
[TimeControl "40/5400+30:1800+30"]

1. d4 {[%emt 0:00:00]} Nf6 {[%emt 0:00:00]} 2. Nf3 {[%emt 0:00:00]} g6 {[%emt 0:00:00]} 3. Nc3 {[%emt 0:00:05]} d5 {[%emt 0:00:36]} 4. Bf4 {[%emt 0:00:14]} Bg7 {[%emt 0:00:08]} 5. e3 {[%emt 0:00:13]} O-O {[%emt 0:00:33]} 6. Be2 {[%emt 0:01:02]} Re8 {[%emt 0:02:29]} 7. O-O {[%emt 0:01:24]} Nh5 {[%emt 0:00:25]} 8. Bg5 {[%emt 0:02:45]} h6 {[%emt 0:00:08]} 9. Bh4 {[%emt 0:00:05]} Nf6 {[%emt 0:00:35]} 10. Ne5 {[%emt 0:01:33]} c5 {[%emt 0:00:44]} 11. f4 {[%emt 0:07:45]} cxd4 {[%emt 0:00:43]} 12. exd4 {[%emt 0:00:03]} Nc6 {[%emt 0:00:13]} 13. Bf2 {[%emt 0:09:08]} h5 {[%emt 0:03:05]} 14. Bd3 {[%emt 0:02:17]} Bg4 {[%emt 0:10:11]} 15. Qd2 {[%emt 0:02:08]} e6 {[%emt 0:00:20]} 16. Nd1 {[%emt 0:02:43]} Bf5 {[%emt 0:07:49]} 17. c3 {[%emt 0:08:13]} Bxd3 {[%emt 0:04:33]} 18. Qxd3 {[%emt 0:00:23]} Ne4 {[%emt 0:00:18]} 19. Be3 {[%emt 0:01:22]} Ne7 {[%emt 0:09:31]} 20. Nf2 {[%emt 0:05:01]} Nxf2 {[%emt 0:00:06]} 21. Bxf2 {[%emt 0:01:03]} Nf5 {[%emt 0:00:07]} 22. g3 {[%emt 0:05:34]} Nd6 {[%emt 0:09:47]} 23. h3 {[%emt 0:02:04]} Qf6 {[%emt 0:04:12]} 24. Rae1 {[%emt 0:02:41]} Qf5 {[%emt 0:00:29]} 25. Qxf5 {[%emt 0:00:19]} gxf5 {[%emt 0:01:09]} 26. Kg2 {[%emt 0:02:31]} b5 {[%emt 0:04:21]} 27. Re2 {[%emt 0:03:40]} Rec8 {[%emt 0:00:58]} 28. Be1 {[%emt 0:00:32]} a5 {[%emt 0:00:42]} 29. g4 {[%emt 0:02:49]} hxg4 {[%emt 0:08:16]} 30. hxg4 {[%emt 0:04:40]} fxg4 {[%emt 0:01:00]} 31. Nxg4 {[%emt 0:00:28]} Nf5 {[%emt 0:00:48]} 32. Ne3 {[%emt 0:01:08]} Nxe3+ {[%emt 0:13:51]} 33. Rxe3 {[%emt 0:00:15]} Re8 {[%emt 0:00:08]} 34. Rg3 {[%emt 0:07:55]} f5 {[%emt 0:01:58]} 35. Kf3 {[%emt 0:00:56]} Kf7 {[%emt 0:00:28]} 36. Rh1 {[%emt 0:00:50]} Rh8 {[%emt 0:00:11]} 37. Rgh3 {[%emt 0:00:13]} Rxh3+ {[%emt 0:00:52]} 38. Rxh3 {[%emt 0:00:05]} b4 {[%emt 0:06:25]} 39. Ke3 {[%emt 0:02:32]} Rb8 {[%emt 0:02:32]} 40. Kd3 {[%emt 0:00:34]} bxc3 {[%emt 0:04:40]} 41. Bxc3 {[%emt 0:30:33]} a4 {[%emt 0:30:29]} 42. Rh2 {[%emt 0:03:15]} Bf8 {[%emt 0:00:00]} 43. Rh7+ {[%emt 0:00:00]} Bg7 {[%emt 0:00:00]} 44. Rh2 {[%emt 0:00:00]} Kg6 {[%emt 0:00:00]} 45. Re2 {[%emt 0:00:00]} Kf6 {[%emt 0:00:00]} 46. Rh2 {[%emt 0:00:00]} Rb7 {[%emt 0:00:00]} 47. Kc2 {[%emt 0:00:00]} Bf8 {[%emt 0:00:00]} 48. b3 {[%emt 0:00:00]} a3 {[%emt 0:00:00]} 49. Kd3 {[%emt 0:00:00]} Rg7 {[%emt 0:00:00]} 50. Be1 {[%emt 0:00:00]} Rg4 {[%emt 0:00:00]} 51. Bd2 {[%emt 0:01:33]} Rg3+ {[%emt 0:00:00]} 52. Be3 {[%emt 0:00:19]} Bd6 {[%emt 0:00:00]} 53. Ke2 {[%emt 0:00:17]} Rg4 {[%emt 0:00:00]} 54. Kf3 {[%emt 0:01:16]} Rg8 {[%emt 0:00:00]} 55. Rh6+ {[%emt 0:02:31]} Kf7 {[%emt 0:00:00]} 56. Rh7+ {[%emt 0:01:00]} Kg6 {[%emt 0:00:00]} 57. Rh1 {[%emt 0:00:15]} Rb8 {[%emt 0:00:00]} 58. Rc1 {[%emt 0:00:49]} Kf7 {[%emt 0:00:00]} 59. Bf2 {[%emt 0:01:25]} Rh8 {[%emt 0:02:43]} 60. Bg3 {[%emt 0:00:51]} Ke7 {[%emt 0:00:12]} 61. Kg2 {[%emt 0:01:01]} Kd7 {[%emt 0:00:15]} 62. Kf3 {[%emt 0:00:08]} Bb4 {[%emt 0:00:24]} 63. Kg2 {[%emt 0:02:01]} Bd2 {[%emt 0:00:39]} 64. Rd1 {[%emt 0:01:49]} Bc3 {[%emt 0:00:26]} 65. Kf3 {[%emt 0:02:30]} Bb2 {[%emt 0:00:10]} 66. Bf2 {[%emt 0:01:48]} Rc8 {[%emt 0:00:48]} 67. Ke2 {[%emt 0:00:43]} Kc6 {[%emt 0:02:59]} 68. Kd3 {[%emt 0:02:52]} Kb5 {[%emt 0:00:28]} 69. Re1 {[%emt 0:00:24]} Rc3+ {[%emt 0:00:31]} 70. Kd2 {[%emt 0:00:54]} Rf3 {[%emt 0:00:23]} 71. Be3 {[%emt 0:00:07]} Rh3 {[%emt 0:04:20]} 72. Re2 {[%emt 0:00:40]} Rh1 {[%emt 0:00:24]} 73. Bf2 {[%emt 0:03:14]} Ra1 {[%emt 0:00:06]} 74. Rxe6 {[%emt 0:00:10]} Rxa2 {[%emt 0:00:06]} 75. Kd3 {[%emt 0:00:42]} Ra1 {[%emt 0:01:08]} 76. Rd6 {[%emt 0:00:25]} a2 {[%emt 0:00:40]} 77. Rxd5+ {[%emt 0:00:25]} Kb4 {[%emt 0:02:46]} 78. Rd8 {[%emt 0:00:45]} Rd1+ {[%emt 0:00:22]} 79. Kc2 {[%emt 0:00:12]} Rc1+ {[%emt 0:00:10]} 80. Kxb2 {[%emt 0:01:09]} a1=Q# {[%emt 0:00:14]} 0-1

[Event "90th GER-ch 2019"]
[Site "Magdeburg"]
[Date "2019.05.31"]
[Round "8.2"]
[White "Lubbe, Nikolas"]
[Black "Kollars, Dmitrij"]
[Result "0-1"]
[ECO "D43"]
[WhiteElo "2431"]
[BlackElo "2561"]
[Annotator "RC"]
[PlyCount "82"]
[EventDate "2019.05.26"]
[EventType "tourn"]
[EventCountry "GER"]
[SourceTitle "playchess.com"]
[Source "ChessBase"]
[SourceQuality "1"]
[TimeControl "40/5400+30:1800+30"]

1. Nf3 {[%emt 0:00:00]} Nf6 {[%emt 0:00:04]} 2. d4 {[%emt 0:00:00]} d5 {[%emt 0:00:16]} 3. c4 {[%emt 0:00:11]} c6 {[%emt 0:00:35]} 4. Nc3 {[%emt 0:00:30]} e6 {[%emt 0:00:12]} 5. g3 {[%emt 0:01:18]} dxc4 {[%emt 0:00:40]} 6. Bg2 {[%emt 0:01:13]} b5 {[%emt 0:00:51]} 7. Ne5 {[%emt 0:02:59]} Qb6 {[%emt 0:01:28]} 8. O-O {[%emt 0:01:43]} Bb7 {[%emt 0:00:28]} 9. a4 {[%emt 0:01:17]} a5 {[%emt 0:01:20]} 10. e4 {[%emt 0:06:28]} Be7 {[%emt 0:10:21]} 11. Be3 {[%emt 0:04:07]} O-O {[%emt 0:03:33]} 12. d5 {[%emt 0:08:32]} Bc5 {[%emt 0:06:54]} 13. dxc6 {[%emt 0:07:37]} Nxc6 {[%emt 0:00:32]} 14. Nxc6 {[%emt 0:05:57]} Bxc6 {[%emt 0:01:48]} 15. axb5 {[%emt 0:08:32]} Rfd8 {[%emt 0:11:58]} 16. Bxc5 {[%emt 0:05:42]} Qxc5 {[%emt 0:00:29]} 17. Qa4 {[%emt 0:00:57]} Bb7 {[%emt 0:00:42]} 18. Qc2 {[%emt 0:05:11]} Rd4 {[%emt 0:08:29]} 19. Rfe1 {[%emt 0:08:56]} e5 {[%emt 0:03:53]} 20. h3 {[%emt 0:06:08]} h5 {[%emt 0:01:37]} 21. Re3 {[%emt 0:07:13]} h4 {[%emt 0:05:54]} 22. g4 {[%emt 0:02:02]} Nh7 {[%emt 0:05:03]} 23. Ne2 {[%emt 0:01:16]} Rd6 {[%emt 0:04:00]} 24. Rc3 {[%emt 0:01:42]} Rf6 {[%emt 0:04:40]} 25. Rf1 {[%emt 0:00:52]} Rc8 {[%emt 0:01:55]} 26. b3 {[%emt 0:00:33]} Qxb5 {[%emt 0:00:05]} 27. bxc4 {[%emt 0:01:07]} Qc5 {[%emt 0:00:09]} 28. Nc1 {[%emt 0:01:05]} Ng5 {[%emt 0:01:20]} 29. Nb3 {[%emt 0:00:19]} Qa7 {[%emt 0:01:22]} 30. c5 {[%emt 0:03:39]} a4 {[%emt 0:00:29]} 31. Nd2 {[%emt 0:00:03]} Ne6 {[%emt 0:03:18]} 32. Nf3 {[%emt 0:02:04]} Rxc5 {[%emt 0:05:19]} 33. Rxc5 {[%emt 0:00:01]} Qxc5 {[%emt 0:00:07]} 34. Qxa4 {[%emt 0:00:21]} Bc6 {[%emt 0:00:54]} 35. Qb3 {[%emt 0:02:35]} Bxe4 {[%emt 0:01:41]} 36. Nxh4 {[%emt 0:01:15]} Bxg2 {[%emt 0:00:22]} 37. Nxg2 {[%emt 0:01:48]} Ng5 {[%emt 0:03:01]} 38. Qe3 {[%emt 0:00:33]} Nf3+ {[%emt 0:03:46]} 39. Kh1 {[%emt 0:00:01]} Qd5 {[%emt 0:00:09]} 40. g5 {[%emt 0:01:14]} Rg6 {[%emt 0:04:14]} 41. Rc1 {[%emt 0:04:45]} Nxg5 {[%emt 0:04:58]} 0-1

[Event "90th GER-ch 2019"]
[Site "Magdeburg"]
[Date "2019.05.31"]
[Round "8.4"]
[White "Roseneck, Jonas"]
[Black "Rosner, Jonas"]
[Result "0-1"]
[ECO "B12"]
[WhiteElo "2403"]
[BlackElo "2413"]
[Annotator "ChessBase"]
[PlyCount "88"]
[EventDate "2019.05.26"]
[EventType "tourn"]
[EventCountry "GER"]
[SourceTitle "playchess.com"]
[Source "ChessBase"]
[SourceQuality "1"]
[TimeControl "40/5400+30:1800+30"]

1. e4 {[%emt 0:00:00]} c6 {[%emt 0:00:00]} 2. d4 {[%emt 0:00:00]} d5 {[%emt 0:00:00]} 3. e5 {[%emt 0:00:00]} c5 {[%emt 0:00:00]} 4. dxc5 {[%emt 0:00:00]} e6 {[%emt 0:00:16]} 5. Nf3 {[%emt 0:01:06]} Bxc5 {[%emt 0:00:47]} 6. a3 {[%emt 0:00:02]} Ne7 {[%emt 0:00:33]} 7. b4 {[%emt 0:00:56]} Bb6 {[%emt 0:00:14]} 8. Bd3 {[%emt 0:01:27]} Ng6 {[%emt 0:02:13]} 9. O-O {[%emt 0:02:05]} O-O {[%emt 0:02:04]} 10. Bb2 {[%emt 0:08:24]} Nf4 {[%emt 0:03:52]} 11. c4 {[%emt 0:05:06]} Nxd3 {[%emt 0:00:37]} 12. Qxd3 {[%emt 0:00:04]} dxc4 {[%emt 0:00:37]} 13. Qxc4 {[%emt 0:00:01]} Bd7 {[%emt 0:01:56]} 14. Nc3 {[%emt 0:17:43]} Bc6 {[%emt 0:04:06]} 15. Rad1 {[%emt 0:02:00]} Qe7 {[%emt 0:02:39]} 16. Qg4 {[%emt 0:17:55]} Rd8 {[%emt 0:33:01]} 17. b5 {[%emt 0:06:19]} Bxf3 {[%emt 0:16:39]} 18. Qxf3 {[%emt 0:00:03]} Nd7 {[%emt 0:00:12]} 19. Qxb7 {[%emt 0:02:47]} Rab8 {[%emt 0:00:01]} 20. Qe4 {[%emt 0:01:54]} Qc5 {[%emt 0:01:57]} 21. a4 {[%emt 0:15:57]} Nxe5 {[%emt 0:06:27]} 22. a5 {[%emt 0:05:12]} Bc7 {[%emt 0:03:19]} 23. b6 {[%emt 0:03:59]} axb6 {[%emt 0:01:04]} 24. a6 {[%emt 0:00:01]} Qc6 {[%emt 0:03:23]} 25. Qxc6 {[%emt 0:00:48]} Nxc6 {[%emt 0:00:02]} 26. Nb5 {[%emt 0:00:13]} Bf4 {[%emt 0:03:39]} 27. a7 {[%emt 0:02:01]} Ra8 {[%emt 0:00:56]} 28. Rxd8+ {[%emt 0:00:11]} Rxd8 {[%emt 0:00:31]} 29. Ra1 {[%emt 0:03:27]} Ra8 {[%emt 0:03:36]} 30. g3 {[%emt 0:01:26]} Bg5 {[%emt 0:00:37]} 31. Ra6 {[%emt 0:02:12]} Bd8 {[%emt 0:01:24]} 32. Bc1 {[%emt 0:00:13]} Kf8 {[%emt 0:02:15]} 33. Bf4 {[%emt 0:01:04]} Ke7 {[%emt 0:01:02]} 34. Be3 {[%emt 0:01:03]} Kd7 {[%emt 0:00:56]} 35. Ra3 {[%emt 0:01:12]} Nb4 {[%emt 0:01:33]} 36. Bd4 {[%emt 0:00:36]} Kc6 {[%emt 0:01:12]} 37. Nc3 {[%emt 0:00:25]} Nc2 {[%emt 0:01:43]} 38. Ra4 {[%emt 0:00:00]} b5 {[%emt 0:00:10]} 39. Ra6+ {[%emt 0:00:29]} Kb7 {[%emt 0:00:08]} 40. Rd6 {[%emt 0:00:02]} Nxd4 {[%emt 0:01:51]} 41. Rxd4 {[%emt 0:30:55]} Bf6 {[%emt 0:30:43]} 42. Rd7+ {[%emt 0:00:00]} Kc6 {[%emt 0:00:00]} 43. Rd3 {[%emt 0:00:00]} Bxc3 {[%emt 0:00:00]} 44. Rxc3+ {[%emt 0:00:00]} Kb6 {[%emt 0:00:00]} 0-1